bitfinex/quotes_ETHUSD_20241105
["timestamp","ask_amount","ask_price","bid_price","bid_amount"]
[1730797753001,4.66848,2446.0,2445.6,0.34524607]
[1730797753198,4.66848,2446.0,2445.9,0.0931325]
[1730797753495,4.66848,2446.0,2445.5,4.08905]
[1730797753724,4.66848,2446.0,2445.9,0.0931325]
[1730797754217,4.66848,2446.0,2445.5,4.08905]
[1730797754419,4.66848,2446.0,2445.9,0.0931325]
[1730797754622,4.66848,2446.0,2445.7,0.34513241]
[1730797754920,4.66848,2446.0,2445.9,0.0931325]
[1730797755124,4.66848,2446.0,2445.6,0.34513576]
[1730797755429,4.66848,2446.0,2445.7,0.34513576]
[1730797755589,0.5801,2446.0,2445.7,0.0931325]
[1730797755925,4.08848,2445.9,2445.5,4.08905]
[1730797756220,4.08848,2445.9,2445.6,0.34510857]
[1730797756531,4.08848,2445.9,2445.7,0.34510857]
[1730797756732,4.08848,2445.9,2445.6,0.0931325]
[1730797756887,4.08848,2445.9,2445.7,0.34507804]
[1730797757082,5.13523909,2445.9,2445.7,0.0931325]
[1730797757283,4.08864,2445.8,2445.7,0.0931325]
[1730797757526,4.08864,2445.8,2445.5,0.34508341]
[1730797757688,4.08864,2445.8,2445.7,0.0931325]
[1730797758326,5.13524909,2445.9,2445.5,0.34508564]
[1730797758526,4.08849,2445.9,2445.7,0.0931325]
[1730797758824,4.08849,2445.9,2445.8,0.0931325]
[1730797759012,4.08849,2445.9,2445.5,0.16609211]
[1730797759013,4.08849,2445.9,2445.6,0.3450556]
[1730797759186,4.08868,2445.8,2445.5,0.16609211]
[1730797759387,4.08868,2445.8,2445.6,0.34505319]
[1730797759719,4.08868,2445.8,2445.5,0.16609211]
[1730797759892,4.08868,2445.8,2445.6,0.34503818]
[1730797760089,4.08868,2445.8,2445.4,2.40823651]
[1730797760293,4.08868,2445.8,2445.5,0.3450319]
[1730797760496,4.08868,2445.8,2445.6,0.3450319]
[1730797760695,4.08868,2445.8,2445.4,1.51622394]
[1730797761036,4.08868,2445.8,2445.5,0.34502398]
[1730797761212,4.08868,2445.8,2445.6,0.34502398]
[1730797761549,4.08868,2445.8,2445.4,1.51622394]
[1730797761751,4.08868,2445.8,2445.5,0.34499138]
[1730797761911,4.08868,2445.8,2445.6,0.34499138]
[1730797762108,4.08868,2445.8,2445.4,2.40808125]
[1730797762347,4.08868,2445.8,2445.5,0.34498643]
[1730797762647,4.08849,2445.9,2445.6,0.34498643]
[1730797762848,4.08849,2445.9,2445.5,4.08914]
[1730797763036,4.08849,2445.9,2445.6,0.34499526]
[1730797763354,4.08849,2445.9,2445.5,4.08913]
[1730797763536,4.08849,2445.9,2445.6,0.34499265]
[1730797763738,4.08849,2445.9,2445.5,4.08913]
[1730797763948,4.08849,2445.9,2445.6,0.34499813]
[1730797764161,4.08849,2445.9,2445.5,0.16606121]
[1730797764311,4.08849,2445.9,2445.6,0.34498844]
[1730797764648,4.08826,2446.1,2445.7,5.19200047]
[1730797764954,4.08826,2446.1,2445.7,4.8471]
[1730797765116,4.08826,2446.1,2445.8,0.0928906]
[1730797765455,4.08826,2446.1,2445.8,0.43780678]
[1730797765829,4.08826,2446.1,2445.8,0.0928906]
[1730797766024,5.79872087,2446.3,2445.8,0.43781014]
[1730797766226,5.79872087,2446.3,2445.8,4.1814506]
[1730797766529,1.71086087,2446.3,2446.1,4.85906]
[1730797766727,7.24233378,2446.6,2446.1,4.85906]
[1730797766728,6.37835087,2446.6,2446.1,4.85906]
[1730797766914,4.66749,2446.6,2446.2,0.09271142]
[1730797767111,4.08775,2446.4,2446.2,0.09271142]
[1730797767513,4.08775,2446.4,2446.0,0.34469032]
[1730797767726,4.08775,2446.4,2446.3,0.09270246]
[1730797767919,4.08775,2446.4,2446.0,0.34469032]
[1730797768155,4.08775,2446.4,2446.3,0.09270246]
[1730797768357,4.08775,2446.4,2445.8,4.43323004]
[1730797768358,5.13436809,2446.4,2445.8,4.43323004]
[1730797768513,5.13436809,2446.4,2446.3,0.09270246]
[1730797768514,4.08775,2446.4,2446.3,0.09270246]
[1730797768716,4.08804,2446.2,2445.8,0.34463004]
[1730797768954,4.08782,2446.3,2445.9,0.34463004]
[1730797769164,4.08782,2446.3,2445.9,1.78747608]
[1730797770019,4.08782,2446.3,2445.9,1.44284604]
[1730797770215,4.08782,2446.3,2445.9,1.7874052]
[1730797770813,4.08798,2446.2,2445.9,0.43726162]
[1730797771017,8.17608,2446.2,2445.9,0.43726162]
[1730797771214,8.17608,2446.2,2445.9,0.09270246]
[1730797771215,4.08798,2446.2,2445.9,0.09270246]
[1730797771457,4.08775,2446.4,2445.9,1.44284604]
[1730797771651,4.08775,2446.4,2445.9,6.5388069]
[1730797771812,8.17549,2446.4,2445.9,6.19431956]
[1730797772017,4.08783,2446.3,2445.9,2.10594956]
[1730797772288,4.08783,2446.3,2445.9,1.78731465]
[1730797772717,4.08798,2446.2,2445.9,1.78731465]
[1730797773215,8.1755,2446.4,2445.9,5.87577465]
[1730797773438,8.1755,2446.4,2445.9,5.53130604]
[1730797773639,4.08799,2446.2,2445.9,1.44284604]
[1730797773956,8.17609,2446.2,2445.9,0.43715362]
[1730797774171,4.08829,2446.1,2445.9,0.09270246]
[1730797774316,4.0883,2446.0,2445.9,0.09270246]
[1730797774720,4.08866,2445.8,2445.5,0.7725]
[1730797775520,4.08882,2445.7,2445.5,0.7725]
[1730797775976,4.08882,2445.7,2445.6,0.34462029]
[1730797776652,4.08882,2445.7,2445.3,1.74824661]
[1730797777160,4.08905,2445.6,2445.3,1.74824661]
[1730797777360,4.08882,2445.7,2445.3,1.74824661]
[1730797777874,4.08901,2445.6,2445.3,1.74824661]
[1730797778429,4.08901,2445.6,2445.4,0.34474295]
[1730797778942,4.08914,2445.5,2445.4,0.34474295]
[1730797779269,4.08914,2445.5,2445.3,1.31520956]
[1730797780037,4.08914,2445.5,2445.4,0.08955864]
[1730797781877,4.964803,2445.6,2445.4,0.08955864]
[1730797782192,4.08901,2445.6,2445.4,0.08955864]
[1730797782468,4.08914,2445.5,2445.4,0.08955864]
[1730797783034,4.08901,2445.6,2445.4,0.08955864]
[1730797783331,8.7576,2445.8,2445.4,0.08955864]
[1730797785249,4.0888,2445.7,2445.4,0.08955864]
[1730797785771,4.66884,2445.8,2445.4,0.08955864]
[1730797785932,8.75757,2445.8,2445.4,0.08955864]
[1730797786649,8.75756,2445.8,2445.4,0.08955864]
[1730797787969,1.72086087,2446.1,2445.5,0.7854]
[1730797787970,4.08842,2446.0,2445.5,0.7854]
[1730797788170,4.08858,2445.9,2445.5,0.7854]
[1730797788370,4.08858,2445.9,2445.6,0.08717364]
[1730797791570,4.08842,2446.0,2445.6,0.08717364]
[1730797791934,8.17683,2446.0,2445.6,0.08717364]
[1730797792133,4.08841,2446.0,2445.6,4.75438762]
[1730797792335,4.08841,2446.0,2445.7,0.826]
[1730797792775,4.08841,2446.0,2445.8,0.08699443]
[1730797793641,8.17681,2446.0,2445.8,0.08699443]
[1730797794275,4.0884,2446.0,2445.8,0.08699443]
[1730797794454,4.08814,2446.1,2445.8,0.08699443]
[1730797794879,4.08832,2446.0,2445.8,0.08699443]
[1730797798250,4.08847,2445.9,2445.8,0.08699443]
[1730797799695,4.08832,2446.0,2445.8,0.08699443]
[1730797800107,1.71086087,2446.3,2445.9,4.08847]
[1730797800409,4.08789,2446.3,2445.9,1.43625501]
[1730797800712,4.0881,2446.2,2445.9,0.08661811]
[1730797801286,4.0878,2446.3,2445.9,0.08661811]
[1730797801491,4.08797,2446.2,2445.9,0.08661811]
[1730797801817,4.0883,2446.1,2445.9,0.08661811]
[1730797802347,4.0883,2446.1,2446.0,0.08654644]
[1730797802675,4.0883,2446.1,2445.7,0.826]
[1730797802875,4.0883,2446.1,2446.0,0.08654644]
[1730797803096,4.0883,2446.1,2445.7,0.826]
[1730797803302,4.0883,2446.1,2446.0,0.08654644]
[1730797803501,4.0883,2446.1,2445.8,0.34482238]
[1730797803720,4.0883,2446.1,2446.0,0.08654644]
[1730797803902,4.0883,2446.1,2445.8,0.34482238]
[1730797804118,4.0883,2446.1,2445.9,0.08654644]
[1730797805389,4.08791,2446.3,2446.0,0.8075]
[1730797805717,4.08765,2446.4,2446.1,0.08652852]
[1730797806743,4.08782,2446.3,2446.1,0.08652852]
[1730797806887,4.08797,2446.2,2446.1,0.08652852]
[1730797807083,4.08797,2446.2,2445.8,0.7885]
[1730797807288,4.08797,2446.2,2445.9,0.08643894]
[1730797810026,5.29096087,2446.5,2445.9,0.08643894]
[1730797810027,4.66824,2446.1,2445.9,0.08643894]
[1730797810385,4.66824,2446.1,2445.8,0.34496469]
[1730797810619,4.66824,2446.1,2446.0,0.08643894]
[1730797810833,4.66824,2446.1,2445.8,0.34496469]
[1730797810999,4.66824,2446.1,2445.7,1.3496369]
[1730797811202,4.08799,2446.2,2445.9,0.08643894]
[1730797811400,4.08799,2446.2,2445.8,0.3450178]
[1730797811698,4.668,2446.3,2445.8,0.3450178]
[1730797811903,4.08812,2446.2,2445.9,0.08643894]
[1730797812103,4.668,2446.3,2445.9,0.08643894]
[1730797812423,4.08814,2446.1,2445.9,0.08643894]
[1730797813299,4.08815,2446.1,2445.9,0.08643894]
[1730797813489,4.08815,2446.1,2445.8,0.34512256]
[1730797813834,4.08797,2446.2,2445.9,0.08627767]
[1730797814213,5.72358882,2446.5,2445.9,0.7793]
[1730797814432,0.01,2446.9,2445.7,1.3496369]
[1730797814433,3.0,2446.6,2446.3,1.3496369]
[1730797814594,6.65912659,2446.9,2446.3,5.4374269]
[1730797814595,6.23052882,2446.8,2446.3,5.4374269]
[1730797814791,2.14348882,2447.0,2446.7,5.4367469]
[1730797814991,4.08631,2447.2,2446.9,1.3496369]
[1730797815197,4.08631,2447.2,2446.9,2.1350369]
[1730797815398,4.08614,2447.3,2447.0,0.08603585]
[1730797815691,8.17153,2447.6,2447.1,1.3496369]
[1730797816085,8.17153,2447.6,2447.2,0.08551655]
[1730797816086,4.08574,2447.6,2447.2,0.08551655]
[1730797816289,4.08597,2447.4,2447.2,0.08551655]
[1730797816884,4.08574,2447.6,2447.2,0.08551655]
[1730797817086,4.552384,2447.5,2447.2,0.08551655]
[1730797817593,4.08598,2447.4,2447.2,0.08551655]
[1730797817818,4.08598,2447.4,2446.9,3.9147585]
[1730797818331,4.08598,2447.4,2447.0,4.17180645]
[1730797818500,4.08598,2447.4,2447.0,0.08517645]
[1730797819818,4.0858,2447.5,2447.0,0.08517645]
[1730797820015,4.0858,2447.5,2447.0,4.17174645]
[1730797820824,4.0858,2447.5,2447.0,8.25828645]
[1730797821023,4.08574,2447.6,2447.1,4.08646]
[1730797821190,3.0,2447.7,2447.3,0.7521]
[1730797821394,4.08541,2447.8,2447.3,0.7521]
[1730797821627,4.08546,2447.7,2447.4,0.08503328]
[1730797822243,4.08563,2447.6,2447.4,0.08503328]
[1730797822392,4.0858,2447.5,2447.4,0.08503328]
[1730797822594,4.902943,2447.5,2447.4,0.08503328]
[1730797822807,4.902943,2447.5,2447.1,0.7521]
[1730797823028,4.0858,2447.5,2447.4,0.08359205]
[1730797823191,4.08563,2447.6,2447.1,0.7521]
[1730797823394,4.08563,2447.6,2447.4,0.08359205]
[1730797823799,8.17138,2447.6,2447.1,0.7521]
[1730797824003,8.17138,2447.6,2447.5,0.08359205]
[1730797824236,8.988518,2447.6,2447.1,0.7521]
[1730797824441,4.08563,2447.6,2447.5,0.08359205]
[1730797824745,4.08582,2447.5,2447.1,0.7521]
[1730797825230,4.08582,2447.5,2447.2,0.08359205]
[1730797826733,4.08548,2447.7,2447.2,0.08359205]
[1730797827091,4.08548,2447.7,2447.3,0.7769]
[1730797827296,4.08548,2447.7,2447.4,0.08363678]
[1730797827496,4.08565,2447.6,2447.4,0.08363678]
[1730797827941,4.08579,2447.6,2447.4,0.08363678]
[1730797829812,4.08548,2447.7,2447.4,0.08363678]
[1730797830015,8.17111,2447.7,2447.4,0.08363678]
[1730797830340,4.08563,2447.6,2447.4,0.08363678]
[1730797830831,4.08548,2447.7,2447.4,0.08363678]
[1730797831909,4.08566,2447.6,2447.4,0.08363678]
[1730797832138,4.08548,2447.7,2447.4,0.08363678]
[1730797832378,4.08548,2447.7,2447.4,0.16816579]
[1730797833450,8.17045,2447.9,2447.4,0.16816579]
[1730797834051,4.08535,2447.8,2447.4,0.16816579]
[1730797834705,4.08548,2447.7,2447.4,0.16816579]
[1730797834914,4.08518,2447.9,2447.6,0.8254]
[1730797835145,4.08546,2447.7,2447.6,0.8254]
[1730797836183,8.98811,2447.7,2447.3,0.8254]
[1730797836382,4.08583,2447.5,2447.0,0.8254]
[1730797836696,4.08583,2447.5,2447.0,4.91191]
[1730797836969,5.48273,2447.7,2447.0,4.91191]
[1730797837171,8.75128,2447.7,2447.2,3.1293585]
[1730797837481,4.08564,2447.6,2447.4,1.34778321]
[1730797837631,4.08556,2447.7,2447.4,2.12538321]
[1730797837985,4.08556,2447.7,2447.6,1.34778321]
[1730797839234,4.08523,2447.9,2447.6,1.34778321]
[1730797839657,4.08523,2447.9,2447.7,0.7676]
[1730797840066,8.17049,2447.9,2447.8,0.16810318]
[1730797840270,4.08523,2447.9,2447.8,0.16810318]
[1730797840471,4.0853,2447.8,2447.7,0.7676]
[1730797841934,4.08499,2448.0,2447.7,0.7676]
[1730797842177,4.0853,2447.8,2447.7,0.7676]
[1730797843170,4.08514,2447.9,2447.7,0.7676]
[1730797843477,4.0853,2447.8,2447.7,0.7676]
[1730797844137,0.5801,2448.5,2447.7,0.97913832]
[1730797844377,4.66431,2448.5,2448.2,1.34778321]
[1730797844883,4.08442,2448.4,2448.2,1.34778321]
[1730797846039,4.08446,2448.3,2448.2,1.34778321]
[1730797846234,4.08442,2448.4,2448.1,0.8286]
[1730797846441,4.08463,2448.2,2448.1,0.8286]
[1730797846860,4.08455,2448.3,2448.1,0.8286]
[1730797848316,4.08448,2448.3,2448.1,0.8286]
[1730797848688,8.16903,2448.3,2448.1,0.8286]
[1730797848888,4.08448,2448.3,2448.1,0.8286]
[1730797849222,8.16904,2448.3,2448.1,0.8286]
[1730797849508,4.08448,2448.3,2448.0,1.34778321]
[1730797849686,4.08448,2448.3,2447.9,0.8128]
[1730797850101,4.08483,2448.1,2447.9,0.8128]
[1730797850471,4.08457,2448.3,2447.9,1.15642992]
[1730797850773,4.08481,2448.1,2447.9,0.8128]
[1730797852914,4.08464,2448.2,2447.9,0.8128]
[1730797853118,4.08459,2448.3,2448.0,1.34778321]
[1730797853413,4.66433,2448.5,2448.0,1.34778321]
[1730797853414,4.08423,2448.5,2448.1,0.7679]
[1730797853589,4.08407,2448.6,2448.2,1.34778321]
[1730797853988,4.08415,2448.5,2448.2,1.34778321]
[1730797854686,4.08396,2448.6,2448.2,1.34778321]
[1730797855126,4.08321,2449.1,2448.5,0.7679]
[1730797855464,4.08338,2449.0,2448.6,0.161101]
[1730797855954,4.08329,2449.0,2448.6,0.161101]
[1730797856306,4.08356,2448.9,2448.6,0.161101]
[1730797857533,4.08364,2448.8,2448.6,0.161101]
[1730797857955,4.08379,2448.7,2448.6,0.161101]
[1730797858454,4.08364,2448.8,2448.6,0.161101]
[1730797858660,4.08379,2448.7,2448.6,0.161101]
[1730797859849,3.0,2449.4,2448.6,3.28646675]
[1730797860029,4.08208,2449.8,2449.2,0.7629]
[1730797860247,4.08241,2449.6,2449.2,0.7629]
[1730797860417,4.0824,2449.6,2449.3,0.16087751]
[1730797860621,4.08209,2449.8,2449.3,0.16087751]
[1730797860847,4.08209,2449.8,2449.3,3.12536575]
[1730797861066,4.0818,2449.9,2449.4,0.923706]
[1730797861363,8.16375,2449.9,2449.4,0.923706]
[1730797861566,4.0818,2449.9,2449.4,0.923706]
[1730797861767,4.08201,2449.8,2449.4,0.923706]
[1730797862428,4.0818,2449.9,2449.4,0.923706]
[1730797862654,4.0818,2449.9,2449.4,2.22485613]
[1730797862854,1.3599964,2450.0,2449.5,0.825]
[1730797863080,4.08223,2449.7,2449.5,0.825]
[1730797863290,4.08223,2449.7,2449.6,0.16038599]
[1730797864094,4.08198,2449.8,2449.6,0.16038599]
[1730797864889,4.66223,2449.7,2449.6,0.16038599]
[1730797865090,5.536651,2449.7,2449.6,0.16038599]
[1730797865290,4.08279,2449.3,2449.0,1.74818059]
[1730797865500,4.08296,2449.2,2449.0,1.74818059]
[1730797865655,4.08296,2449.2,2449.1,0.16023411]
[1730797867196,7.957545,2449.2,2449.1,0.16023411]
[1730797868579,8.537645,2449.2,2449.1,0.16023411]
[1730797868752,8.537645,2449.2,2449.0,0.96888059]
[1730797868959,4.08313,2449.1,2449.0,0.96888059]
[1730797869158,4.08313,2449.1,2449.0,1.12285784]
[1730797869366,4.08266,2449.4,2449.0,1.12285784]
[1730797869367,0.5801,2449.4,2449.0,1.12285784]
[1730797869703,4.08307,2449.2,2449.0,1.12285784]
[1730797870300,4.08263,2449.4,2449.0,1.12285784]
[1730797870477,4.08305,2449.2,2449.0,1.12285784]
[1730797870979,8.16614,2449.2,2449.0,1.12285784]
[1730797871501,8.16611,2449.2,2449.0,1.12285784]
[1730797872189,4.08305,2449.2,2449.0,1.12285784]
[1730797872563,8.16611,2449.2,2449.0,1.12285784]
[1730797872990,4.08305,2449.2,2449.0,1.12285784]
[1730797873191,7.66242,2449.6,2449.0,1.12285784]
[1730797873192,4.08272,2449.4,2449.0,1.12285784]
[1730797873393,4.08292,2449.3,2449.0,1.12285784]
[1730797873564,0.408292,2449.3,2449.0,1.12285784]
[1730797873763,4.08313,2449.1,2449.0,1.12285784]
[1730797873964,4.08298,2449.2,2449.0,0.96888059]
[1730797874188,4.08298,2449.2,2449.1,0.1542721]
[1730797875596,4.08274,2449.4,2449.1,0.9121721]
[1730797876565,4.08296,2449.2,2449.1,0.1542721]
[1730797876989,4.08283,2449.3,2449.1,0.1542721]
[1730797877397,4.08274,2449.4,2449.1,0.1542721]
[1730797877659,4.08274,2449.4,2449.1,0.9360721]
[1730797879803,8.16551,2449.4,2449.1,0.9360721]
[1730797880130,8.16551,2449.4,2449.1,1.53491337]
[1730797880299,4.0829,2449.3,2449.1,1.53491337]
[1730797880493,4.08296,2449.2,2449.1,0.9360721]
[1730797881932,4.0829,2449.3,2449.1,0.9360721]
[1730797883398,4.08272,2449.4,2449.1,0.9360721]
[1730797884005,4.08263,2449.4,2449.1,0.9360721]
[1730797884205,4.08264,2449.4,2449.1,1.53491337]
[1730797884597,4.08257,2449.5,2449.1,1.53491337]
[1730797884802,4.08257,2449.5,2449.2,0.7516]
[1730797885035,4.08257,2449.5,2449.3,0.1544597]
[1730797885237,4.0823,2449.6,2449.3,0.1544597]
[1730797885547,4.0823,2449.6,2449.4,0.9615597]
[1730797885747,4.08223,2449.7,2449.4,0.9615597]
[1730797886247,4.08192,2449.9,2449.4,0.9615597]
[1730797886402,4.08192,2449.9,2449.5,0.8071]
[1730797886614,4.08192,2449.9,2449.6,0.50441397]
[1730797886915,4.08192,2449.9,2449.7,0.7897]
[1730797887124,4.08192,2449.9,2449.8,0.1541738]
[1730797887444,4.08192,2449.9,2449.7,0.7897]
[1730797887613,1.3599964,2450.0,2449.8,0.1541738]
[1730797887809,5.4416864,2450.0,2449.8,0.1541738]
[1730797888024,5.4416864,2450.0,2449.7,0.7897]
[1730797888226,5.4416264,2450.0,2449.9,0.1541738]
[1730797888411,5.4416264,2450.0,2449.7,0.7897]
[1730797888717,1.3599964,2450.0,2449.7,0.7897]
[1730797889039,8.16373,2449.9,2449.8,0.1541738]
[1730797889438,8.16373,2449.9,2449.7,0.7897]
[1730797889646,4.08213,2449.7,2449.4,1.13888667]
[1730797889805,4.08213,2449.7,2449.4,1.37667142]
[1730797890240,8.16437,2449.7,2449.4,1.72038771]
[1730797890542,4.08213,2449.7,2449.4,1.37667142]
[1730797890744,4.08213,2449.7,2449.4,0.7952]
[1730797891044,4.08254,2449.5,2449.2,0.7865]
[1730797891210,4.0824,2449.6,2449.2,0.7865]
[1730797891719,8.1648,2449.6,2449.2,0.7865]
[1730797891919,4.0824,2449.6,2449.2,1.83855219]
[1730797892336,4.08239,2449.6,2449.2,1.83855219]
[1730797892521,4.08259,2449.5,2449.2,0.7865]
[1730797893752,4.08239,2449.6,2449.2,0.7865]
[1730797894252,4.08239,2449.6,2449.2,1.13040566]
[1730797894423,8.16483,2449.6,2449.2,0.7865]
[1730797895336,8.16483,2449.6,2449.2,1.13043136]
[1730797895538,4.08247,2449.5,2449.2,1.13043136]
[1730797895705,4.08264,2449.4,2449.2,1.13041541]
[1730797896050,4.08264,2449.4,2449.2,0.7865]
[1730797896747,4.08246,2449.5,2449.2,0.7865]
[1730797897109,4.0824,2449.6,2449.2,0.7865]
[1730797897327,4.0824,2449.6,2449.2,1.13042021]
[1730797897743,4.08238,2449.6,2449.2,1.13042021]
[1730797898111,4.08226,2449.7,2449.2,4.86938]
[1730797900034,4.08226,2449.7,2449.3,0.15384325]
[1730797900235,4.082,2449.8,2449.3,0.15384325]
[1730797900236,4.08263,2449.4,2449.3,0.15384325]
[1730797900549,4.08263,2449.4,2449.3,0.15382539]
[1730797900709,4.08263,2449.4,2449.2,0.7865]
[1730797901116,4.08246,2449.5,2449.3,0.14869728]
[1730797901332,4.08263,2449.4,2449.2,0.7865]
[1730797901533,4.08263,2449.4,2449.3,0.14869728]
[1730797901735,4.08263,2449.4,2449.2,0.7865]
[1730797901933,4.08263,2449.4,2449.3,0.14869728]
[1730797902135,4.08263,2449.4,2449.2,0.7865]
[1730797902318,4.08263,2449.4,2449.3,0.14869728]
[1730797902531,4.08263,2449.4,2449.2,0.7865]
[1730797902736,4.08263,2449.4,2449.3,0.14869728]
[1730797902932,4.08279,2449.3,2449.2,0.7865]
[1730797903138,4.08279,2449.3,2449.2,0.14869728]
[1730797903338,4.08263,2449.4,2449.2,0.14869728]
[1730797904477,4.08279,2449.3,2449.2,0.14869728]
[1730797904760,4.899332,2449.3,2449.0,1.79448059]
[1730797905051,4.08306,2449.2,2449.1,0.14869728]
[1730797906517,4.66316,2449.2,2449.1,0.14869728]
[1730797907314,4.08279,2449.3,2449.1,0.14869728]
[1730797907553,4.08279,2449.3,2449.2,0.7971]
[1730797908062,4.08279,2449.3,2449.2,0.14896528]
[1730797908554,4.08297,2449.2,2449.0,1.72848059]
[1730797908724,4.08297,2449.2,2449.0,2.07276035]
[1730797908930,4.08297,2449.2,2449.0,1.72848059]
[1730797909131,4.08297,2449.2,2449.0,2.07276035]
[1730797909333,4.08297,2449.2,2449.0,1.72848059]
[1730797909538,4.08297,2449.2,2449.0,2.07276035]
[1730797909841,4.08297,2449.2,2449.0,1.72848059]
[1730797910050,4.08297,2449.2,2449.0,2.07276035]
[1730797910364,4.08297,2449.2,2449.0,1.72848059]
[1730797910518,4.08297,2449.2,2449.0,2.07277298]
[1730797910717,4.08297,2449.2,2449.0,1.72848059]
[1730797910913,4.08297,2449.2,2449.0,2.07277298]
[1730797911151,4.08297,2449.2,2449.0,1.72848059]
[1730797911353,4.08297,2449.2,2449.0,2.07277298]
[1730797911554,4.08297,2449.2,2449.0,1.72848059]
[1730797911731,4.08297,2449.2,2449.0,2.07276872]
[1730797912061,4.08297,2449.2,2449.0,1.72848059]
[1730797912362,4.08297,2449.2,2449.0,2.07276872]
[1730797912563,4.08297,2449.2,2449.0,1.72848059]
[1730797912723,4.08297,2449.2,2449.0,2.07276872]
[1730797912924,4.08257,2449.5,2449.2,0.7505]
[1730797913159,4.08266,2449.4,2449.2,0.7505]
[1730797914423,4.08257,2449.5,2449.2,0.7505]
[1730797914771,0.5801,2449.7,2449.0,0.96888059]
[1730797915070,4.08296,2449.2,2449.1,0.14896528]
[1730797917153,4.66306,2449.2,2449.1,0.14896528]
[1730797917353,4.66306,2449.2,2449.0,0.96888059]
[1730797917524,4.08313,2449.1,2449.0,0.96888059]
[1730797917725,5.53645952,2449.1,2449.0,0.96888059]
[1730797918572,8.53645952,2449.1,2449.0,0.96888059]
[1730797920675,4.08313,2449.1,2449.0,0.96888059]
[1730797923767,4.08296,2449.2,2449.0,0.96888059]
[1730797924160,4.08313,2449.1,2449.0,0.96888059]
[1730797925185,4.08296,2449.2,2449.0,0.96888059]
[1730797925855,4.08313,2449.1,2449.0,0.96888059]
[1730797927865,4.08296,2449.2,2449.1,0.7695]
[1730797929265,4.08313,2449.1,2449.0,0.96888059]
[1730797930074,4.08278,2449.4,2449.0,1.11827473]
[1730797930311,4.08278,2449.4,2449.2,0.7973]
[1730797930490,4.08263,2449.4,2449.2,0.7973]
[1730797930667,4.08263,2449.4,2449.3,0.14436073]
[1730797931059,4.08263,2449.4,2449.2,0.7973]
[1730797931288,4.08263,2449.4,2449.3,0.14436073]
[1730797931504,7.08234,2449.6,2449.3,0.14436073]
[1730797931707,4.08256,2449.5,2449.2,0.7973]
[1730797931873,4.08234,2449.6,2449.4,0.14432499]
[1730797932076,4.08246,2449.5,2449.2,1.44223631]
[1730797932478,4.08246,2449.5,2449.3,0.14432499]
[1730797932885,4.08246,2449.5,2449.2,1.44223631]
[1730797933080,4.08246,2449.5,2449.4,0.14432499]
[1730797933572,4.08265,2449.4,2449.2,0.7973]
[1730797933772,4.08265,2449.4,2449.3,0.14419097]
[1730797934000,4.08265,2449.4,2449.2,0.7973]
[1730797934204,4.08265,2449.4,2449.3,0.14419097]
[1730797934469,4.08282,2449.3,2449.0,1.76218059]
[1730797934703,4.08282,2449.3,2449.1,0.34424944]
[1730797934704,4.08296,2449.2,2449.1,0.34424944]
[1730797934867,4.08282,2449.3,2449.1,0.14419097]
[1730797937431,8.16571,2449.3,2449.1,0.14419097]
[1730797937777,4.08296,2449.2,2449.1,0.14419097]
[1730797939393,4.08282,2449.3,2449.1,0.14419097]
[1730797939394,8.16572,2449.3,2449.1,0.14419097]
[1730797939909,4.08282,2449.3,2449.1,0.14419097]
[1730797940085,8.1657,2449.3,2449.1,0.14419097]
[1730797940286,4.08282,2449.3,2449.1,0.14419097]
[1730797940522,8.16571,2449.3,2449.1,0.14419097]
[1730797940887,4.08296,2449.2,2449.1,0.14419097]
[1730797941088,4.66306,2449.2,2449.1,0.14419097]
[1730797941302,5.479638,2449.2,2449.1,0.14419097]
[1730797942148,4.08313,2449.1,2449.0,0.96888059]
[1730797945005,4.08313,2449.1,2449.0,1.09438681]
[1730797946504,11.34909352,2449.1,2449.0,0.96888059]
[1730797946736,12.47579884,2449.1,2449.0,0.96888059]
[1730797949017,11.48167812,2449.1,2449.0,0.96888059]
[1730797949969,11.49167812,2449.1,2449.0,0.96888059]
[1730797950256,9.34993532,2449.1,2449.0,0.96888059]
[1730797951021,9.33993532,2449.1,2449.0,0.96888059]
[1730797951227,11.49093618,2449.1,2449.0,0.96888059]
[1730797952458,12.47579884,2449.1,2449.0,0.96888059]
[1730797953727,14.61553683,2449.1,2449.0,0.96888059]
[1730797954157,12.47579884,2449.1,2449.0,0.96888059]
[1730797954322,12.48579884,2449.1,2449.0,5.9e-07]
[1730797954526,4.08459,2448.3,2448.0,0.7593]
[1730797954935,8.1692,2448.3,2448.1,0.11767282]
[1730797955123,4.08459,2448.3,2448.1,0.11767282]
[1730797955324,4.08463,2448.2,2448.1,0.11767282]
[1730797955525,8.16915,2448.3,2448.1,0.11767282]
[1730797955725,4.08456,2448.3,2448.1,0.11767282]
[1730797955964,4.08463,2448.2,2448.1,0.11767282]
[1730797957973,4.901549,2448.2,2448.1,0.11767282]
[1730797958289,4.08513,2447.9,2447.8,0.7914]
[1730797958644,4.08513,2447.9,2447.8,0.90985944]
[1730797959288,4.08513,2447.9,2447.8,0.11845944]
[1730797959441,4.960146,2447.9,2447.8,0.11845944]
[1730797959640,4.08567,2447.6,2447.3,0.7955]
[1730797959940,4.08567,2447.6,2447.4,0.1109315]
[1730797961179,4.0858,2447.5,2447.4,0.1109315]
[1730797962937,4.08596,2447.4,2447.1,0.8205]
[1730797963771,4.0858,2447.5,2447.1,0.8205]
[1730797963975,8.17174,2447.5,2447.1,0.8205]
[1730797964192,4.08596,2447.4,2447.1,0.8205]
[1730797964397,4.0858,2447.5,2447.1,0.8205]
[1730797964951,8.17172,2447.5,2447.1,0.8205]
[1730797965695,4.08566,2447.6,2447.3,0.8205]
[1730797966706,4.08571,2447.6,2447.3,0.8205]
[1730797967697,4.08556,2447.7,2447.3,0.8155]
[1730797967900,4.08556,2447.7,2447.3,4.08612]
[1730797968058,4.08556,2447.7,2447.3,0.408612]
[1730797968253,4.0853,2447.8,2447.3,4.494722]
[1730797969183,8.1705,2447.9,2447.4,4.08594]
[1730797969384,4.08524,2447.9,2447.4,4.08594]
[1730797969694,4.08532,2447.8,2447.3,8.580722]